Workbook

Sheet List
A1: Selection | B1: Region | C1: Type
A2: 1 | B2: Europe | C2: Revenue
A3: 2 | B3: Americas | C3: Expenses
A4: 3 | B4: Asia Pac | C4: EBIT

Sheet Data
A1: Type | B1: ActPlan | C1: Country | D1: 2013-01-01 | E1: 2013-02-02 | F1: 2013-03-06 | G1: 2013-04-07 | H1: 2013-05-09 | I1: 2013-06-10 | J1: 2013-07-12 | K1: 2013-08-13 | L1: 2013-09-14 | M1: 2013-10-16 | N1: 2013-11-17 | O1: 2013-12-19 | P1: Total
A2: Revenue | B2: Actual | C2: England | D2: 703.8 | E2: 761.3 | F2: 752.1 | G2: 736 | H2: 678.5 | I2: 692.3 | J2: 637.1 | K2: 598 | L2: 598 | M2: 604.9 | N2: 657.8 | O2: 678.5 | P2: =SUM(D2:O2) -> 8098.3
A3: Revenue | B3: Actual | C3: Scotland | D3: 535.9 | E3: 526.7 | F3: 512.9 | G3: 496.8 | H3: 517.5 | I3: 492.2 | J3: 441.6 | K3: 416.3 | L3: 386.4 | M3: 420.9 | N3: 404.8 | O3: 437 | P3: =SUM(D3:O3) -> 5589
A4: Revenue | B4: Actual | C4: Wales | D4: 425.5 | E4: 416.3 | F4: 404.8 | G4: 425.5 | H4: 450.8 | I4: 414 | J4: 377.2 | K4: 365.7 | L4: 384.1 | M4: 423.2 | N4: 414 | O4: 434.7 | P4: 4935.8
A5: Revenue | B5: Actual | C5: Ireland | D5: 742.9 | E5: 772.8 | F5: 777.4 | G5: 731.4 | H5: 752.1 | I5: 791.2 | J5: 837.2 | K5: 897 | L5: 816.5 | M5: 816.5 | N5: 880.9 | O5: 959.1 | P5: 9775
A6: Revenue | B6: Actual | C6: Germany | D6: 756.7 | E6: 786.6 | F6: 768.2 | G6: 715.3 | H6: 763.6 | I6: 710.7 | J6: 724.5 | K6: 731.4 | L6: 710.7 | M6: 690 | N6: 669.3 | O6: 662.4 | P6: 8689.4
A7: Revenue | B7: Actual | C7: France | D7: 841.8 | E7: 860.2 | F7: 894.7 | G7: 814.2 | H7: 823.4 | I7: 880.9 | J7: 862.5 | K7: 828 | L7: 795.8 | M7: 763.6 | N7: 770.5 | O7: 809.6 | P7: 9945.2
A8: Revenue | B8: Actual | C8: Italy | D8: 197.8 | E8: 193.2 | F8: 186.3 | G8: 177.1 | H8: 172.5 | I8: 156.4 | J8: 167.9 | K8: 170.2 | L8: 188.6 | M8: 184 | N8: 193.2 | O8: 184 | P8: 2171.2
A9: Revenue | B9: Actual | C9: Spain | D9: 1196 | E9: 1202.9 | F9: 1235.1 | G9: 1147.7 | H9: 1159.2 | I9: 1276.5 | J9: 1237.4 | K9: 1288 | L9: 1352.4 | M9: 1216.7 | N9: 1276.5 | O9: 1276.5 | P9: 14864.9
A10: Revenue | B10: Actual | C10: Greece | D10: 1097.1 | E10: 1122.4 | F10: 1136.2 | G10: 1205.2 | H10: 1324.8 | I10: 1205.2 | J10: 1156.9 | K10: 1145.4 | L10: 1145.4 | M10: 1076.4 | N10: 1120.1 | O10: 1108.6 | P10: 13843.7
A11: Revenue | B11: Actual | C11: Portugal | D11: 620.494 | E11: 645.012 | F11: 629.924 | G11: 586.546 | H11: 626.152 | I11: 582.774 | J11: 594.09 | K11: 599.748 | L11: 582.774 | M11: 565.8 | N11: 548.826 | O11: 543.168 | P11: 7125.308
A13: Revenue | B13: Plan | C13: England | D13: 668.61 | E13: 723.235 | F13: 714.495 | G13: 699.2 | H13: 644.575 | I13: 657.685 | J13: 605.245 | K13: 568.1 | L13: 544.18 | M13: 550.459 | N13: 598.598 | O13: 617.435 | P13: =SUM(D13:O13) -> 7591.817
A14: Revenue | B14: Plan | C14: Scotland | D14: 509.105 | E14: 500.365 | F14: 487.255 | G14: 471.96 | H14: 491.625 | I14: 467.59 | J14: 419.52 | K14: 395.485 | L14: 351.624 | M14: 383.019 | N14: 368.368 | O14: 397.67 | P14: =SUM(D14:O14) -> 5243.586
A15: Revenue | B15: Plan | C15: Wales | D15: 404.225 | E15: 395.485 | F15: 384.56 | G15: 404.225 | H15: 428.26 | I15: 393.3 | J15: 358.34 | K15: 347.415 | L15: 349.531 | M15: 385.112 | N15: 376.74 | O15: 395.577 | P15: 4622.77
A16: Revenue | B16: Plan | C16: Ireland | D16: 705.755 | E16: 734.16 | F16: 738.53 | G16: 694.83 | H16: 714.495 | I16: 751.64 | J16: 795.34 | K16: 852.15 | L16: 743.015 | M16: 743.015 | N16: 801.619 | O16: 872.781 | P16: 9147.33
A17: Revenue | B17: Plan | C17: Germany | D17: 832.37 | E17: 865.26 | F17: 845.02 | G17: 786.83 | H17: 839.96 | I17: 781.77 | J17: 796.95 | K17: 665.574 | L17: 646.737 | M17: 627.9 | N17: 609.063 | O17: 602.784 | P17: 8900.218
A18: Revenue | B18: Plan | C18: France | D18: 799.71 | E18: 817.19 | F18: 849.965 | G18: 773.49 | H18: 782.23 | I18: 836.855 | J18: 819.375 | K18: 786.6 | L18: 724.178 | M18: 694.876 | N18: 701.155 | O18: 736.736 | P18: 9322.36
A19: Revenue | B19: Plan | C19: Italy | D19: 190.9 | E19: 172.5 | F19: 156.4 | G19: 140.3 | H19: 126.5 | I19: 112.7 | J19: 101.2 | K19: 92 | L19: 82.8 | M19: 73.6 | N19: 66.7 | O19: 59.8 | P19: 1375.4
A20: Revenue | B20: Plan | C20: Spain | D20: 1315.6 | E20: 1323.19 | F20: 1358.61 | G20: 1262.47 | H20: 1275.12 | I20: 1341.6015 | J20: 1300.5074 | K20: 1353.688 | L20: 1421.3724 | M20: 1278.7517 | N20: 1341.6015 | O20: 1341.6015 | P20: 15914.114
A21: Revenue | B21: Plan | C21: Greece | D21: 1042.245 | E21: 1066.28 | F21: 1079.39 | G21: 1144.94 | H21: 1258.56 | I21: 1144.94 | J21: 1099.055 | K21: 1088.13 | L21: 1042.314 | M21: 979.524 | N21: 1019.291 | O21: 1008.826 | P21: 12973.495
A22: Revenue | B22: Plan | C22: Portugal | D22: 682.5434 | E22: 709.5132 | F22: 692.9164 | G22: 645.2006 | H22: 688.7672 | I22: 641.0514 | J22: 653.499 | K22: 545.77068 | L22: 530.32434 | M22: 514.878 | N22: 499.43166 | O22: 494.28288 | P22: 7298.17876
A24: Expenses | B24: Actual | C24: England | D24: 633.42 | E24: 685.17 | F24: 676.89 | G24: 662.4 | H24: 610.65 | I24: 623.07 | J24: 573.39 | K24: 538.2 | L24: 538.2 | M24: 544.41 | N24: 592.02 | O24: 610.65 | P24: =SUM(D24:O24) -> 7288.47
A25: Expenses | B25: Actual | C25: Scotland | D25: 482.31 | E25: 474.03 | F25: 461.61 | G25: 447.12 | H25: 465.75 | I25: 442.98 | J25: 397.44 | K25: 374.67 | L25: 347.76 | M25: 378.81 | N25: 364.32 | O25: 393.3 | P25: =SUM(D25:O25) -> 5030.1
A26: Expenses | B26: Actual | C26: Wales | D26: 382.95 | E26: 374.67 | F26: 364.32 | G26: 382.95 | H26: 405.72 | I26: 372.6 | J26: 339.48 | K26: 329.13 | L26: 345.69 | M26: 380.88 | N26: 372.6 | O26: 391.23 | P26: 4442.22
A27: Expenses | B27: Actual | C27: Ireland | D27: 668.61 | E27: 695.52 | F27: 699.66 | G27: 658.26 | H27: 676.89 | I27: 712.08 | J27: 753.48 | K27: 807.3 | L27: 734.85 | M27: 734.85 | N27: 792.81 | O27: 863.19 | P27: 8797.5
A28: Expenses | B28: Actual | C28: Germany | D28: 681.03 | E28: 707.94 | F28: 691.38 | G28: 643.77 | H28: 687.24 | I28: 639.63 | J28: 652.05 | K28: 658.26 | L28: 639.63 | M28: 621 | N28: 602.37 | O28: 596.16 | P28: 7820.46
A29: Expenses | B29: Actual | C29: France | D29: 757.62 | E29: 774.18 | F29: 805.23 | G29: 732.78 | H29: 741.06 | I29: 792.81 | J29: 776.25 | K29: 745.2 | L29: 716.22 | M29: 687.24 | N29: 693.45 | O29: 728.64 | P29: 8950.68
A30: Expenses | B30: Actual | C30: Italy | D30: 178.02 | E30: 173.88 | F30: 167.67 | G30: 159.39 | H30: 155.25 | I30: 140.76 | J30: 151.11 | K30: 153.18 | L30: 169.74 | M30: 165.6 | N30: 173.88 | O30: 165.6 | P30: 1954.08
A31: Expenses | B31: Actual | C31: Spain | D31: 1076.4 | E31: 1082.61 | F31: 1111.59 | G31: 1032.93 | H31: 1043.28 | I31: 1148.85 | J31: 1113.66 | K31: 1159.2 | L31: 1217.16 | M31: 1095.03 | N31: 1148.85 | O31: 1148.85 | P31: 13378.41
A32: Expenses | B32: Actual | C32: Greece | D32: 987.39 | E32: 1010.16 | F32: 1022.58 | G32: 1084.68 | H32: 1192.32 | I32: 1084.68 | J32: 1041.21 | K32: 1030.86 | L32: 1030.86 | M32: 968.76 | N32: 1008.09 | O32: 997.74 | P32: 12459.33
A33: Expenses | B33: Actual | C33: Portugal | D33: 558.4446 | E33: 580.5108 | F33: 566.9316 | G33: 527.8914 | H33: 563.5368 | I33: 524.4966 | J33: 534.681 | K33: 539.7732 | L33: 524.4966 | M33: 509.22 | N33: 493.9434 | O33: 488.8512 | P33: 6412.7772
A35: Expenses | B35: Plan | C35: England | D35: 601.749 | E35: 650.9115 | F35: 643.0455 | G35: 629.28 | H35: 580.1175 | I35: 591.9165 | J35: 544.7205 | K35: 511.29 | L35: 489.762 | M35: 495.4131 | N35: 538.7382 | O35: 555.6915 | P35: =SUM(D35:O35) -> 6832.6353
A36: Expenses | B36: Plan | C36: Scotland | D36: 458.1945 | E36: 450.3285 | F36: 438.5295 | G36: 424.764 | H36: 442.4625 | I36: 420.831 | J36: 377.568 | K36: 355.9365 | L36: 316.4616 | M36: 344.7171 | N36: 331.5312 | O36: 357.903 | P36: =SUM(D36:O36) -> 4719.2274
A37: Expenses | B37: Plan | C37: Wales | D37: 363.8025 | E37: 355.9365 | F37: 346.104 | G37: 363.8025 | H37: 385.434 | I37: 353.97 | J37: 322.506 | K37: 312.6735 | L37: 314.5779 | M37: 346.6008 | N37: 339.066 | O37: 356.0193 | P37: 4160.493
A38: Expenses | B38: Plan | C38: Ireland | D38: 635.1795 | E38: 660.744 | F38: 664.677 | G38: 625.347 | H38: 643.0455 | I38: 676.476 | J38: 715.806 | K38: 766.935 | L38: 668.7135 | M38: 668.7135 | N38: 721.4571 | O38: 785.5029 | P38: 8232.597
A39: Expenses | B39: Plan | C39: Germany | D39: 749.133 | E39: 778.734 | F39: 760.518 | G39: 708.147 | H39: 755.964 | I39: 703.593 | J39: 717.255 | K39: 599.0166 | L39: 582.0633 | M39: 565.11 | N39: 548.1567 | O39: 542.5056 | P39: 8010.1962
A40: Expenses | B40: Plan | C40: France | D40: 719.739 | E40: 735.471 | F40: 764.9685 | G40: 696.141 | H40: 704.007 | I40: 753.1695 | J40: 737.4375 | K40: 707.94 | L40: 651.7602 | M40: 625.3884 | N40: 631.0395 | O40: 663.0624 | P40: 8390.124
A41: Expenses | B41: Plan | C41: Italy | D41: 171.81 | E41: 155.25 | F41: 140.76 | G41: 126.27 | H41: 113.85 | I41: 101.43 | J41: 91.08 | K41: 82.8 | L41: 74.52 | M41: 66.24 | N41: 60.03 | O41: 53.82 | P41: 1237.86
A42: Expenses | B42: Plan | C42: Spain | D42: 1184.04 | E42: 1190.871 | F42: 1222.749 | G42: 1136.223 | H42: 1147.608 | I42: 1207.44135 | J42: 1170.45666 | K42: 1218.3192 | L42: 1279.23516 | M42: 1150.87653 | N42: 1207.44135 | O42: 1207.44135 | P42: 14322.7026
A43: Expenses | B43: Plan | C43: Greece | D43: 938.0205 | E43: 959.652 | F43: 971.451 | G43: 1030.446 | H43: 1132.704 | I43: 1030.446 | J43: 989.1495 | K43: 979.317 | L43: 938.0826 | M43: 881.5716 | N43: 917.3619 | O43: 907.9434 | P43: 11676.1455
A44: Expenses | B44: Plan | C44: Portugal | D44: 614.28906 | E44: 638.56188 | F44: 623.62476 | G44: 580.68054 | H44: 619.89048 | I44: 576.94626 | J44: 588.1491 | K44: 491.193612 | L44: 477.291906 | M44: 463.3902 | N44: 449.488494 | O44: 444.854592 | P44: 6568.360884
A46: EBIT | B46: Actual | C46: England | D46: =D2-D24 -> 70.38 | E46: =E2-E24 -> 76.13 | F46: 75.21 | G46: 73.6 | H46: 67.85 | I46: 69.23 | J46: 63.71 | K46: 59.8 | L46: 59.8 | M46: 60.49 | N46: 65.78 | O46: 67.85 | P46: =SUM(D46:O46) -> 809.83
A47: EBIT | B47: Actual | C47: Scotland | D47: =D3-D25 -> 53.59 | E47: 52.67 | F47: 51.29 | G47: 49.68 | H47: 51.75 | I47: 49.22 | J47: 44.16 | K47: 41.63 | L47: 38.64 | M47: 42.09 | N47: 40.48 | O47: 43.7 | P47: =SUM(D47:O47) -> 558.9
A48: EBIT | B48: Actual | C48: Wales | D48: =D4-D26 -> 42.55 | E48: 41.63 | F48: 40.48 | G48: 42.55 | H48: 45.08 | I48: 41.4 | J48: 37.72 | K48: 36.57 | L48: 38.41 | M48: 42.32 | N48: 41.4 | O48: 43.47 | P48: 493.58
A49: EBIT | B49: Actual | C49: Ireland | D49: =D5-D27 -> 74.29 | E49: 77.28 | F49: 77.74 | G49: 73.14 | H49: 75.21 | I49: 79.12 | J49: 83.72 | K49: 89.7 | L49: 81.65 | M49: 81.65 | N49: 88.09 | O49: 95.91 | P49: 977.5
A50: EBIT | B50: Actual | C50: Germany | D50: =D6-D28 -> 75.67 | E50: 78.66 | F50: 76.82 | G50: 71.53 | H50: 76.36 | I50: 71.07 | J50: 72.45 | K50: 73.14 | L50: 71.07 | M50: 69 | N50: 66.93 | O50: 66.24 | P50: 868.94
A51: EBIT | B51: Actual | C51: France | D51: =D7-D29 -> 84.18 | E51: 86.02 | F51: 89.47 | G51: 81.42 | H51: 82.34 | I51: 88.09 | J51: 86.25 | K51: 82.8 | L51: 79.58 | M51: 76.36 | N51: 77.05 | O51: 80.96 | P51: 994.52
A52: EBIT | B52: Actual | C52: Italy | D52: =D8-D30 -> 19.78 | E52: 19.32 | F52: 18.63 | G52: 17.71 | H52: 17.25 | I52: 15.64 | J52: 16.79 | K52: 17.02 | L52: 18.86 | M52: 18.4 | N52: 19.32 | O52: 18.4 | P52: 217.12
A53: EBIT | B53: Actual | C53: Spain | D53: =D9-D31 -> 119.6 | E53: 120.29 | F53: 123.51 | G53: 114.77 | H53: 115.92 | I53: 127.65 | J53: 123.74 | K53: 128.8 | L53: 135.24 | M53: 121.67 | N53: 127.65 | O53: 127.65 | P53: 1486.49
A54: EBIT | B54: Actual | C54: Greece | D54: =D10-D32 -> 109.71 | E54: 112.24 | F54: 113.62 | G54: 120.52 | H54: 132.48 | I54: 120.52 | J54: 115.69 | K54: 114.54 | L54: 114.54 | M54: 107.64 | N54: 112.01 | O54: 110.86 | P54: 1384.37
A55: EBIT | B55: Actual | C55: Portugal | D55: =D11-D33 -> 62.0494 | E55: 64.5012 | F55: 62.9924 | G55: 58.6546 | H55: 62.6152 | I55: 58.2774 | J55: 59.409 | K55: 59.9748 | L55: 58.2774 | M55: 56.58 | N55: 54.8826 | O55: 54.3168 | P55: 712.5308
A57: EBIT | B57: Plan | C57: England | D57: =D13-D35 -> 66.861 | E57: 72.3235 | F57: 71.4495 | G57: 69.92 | H57: 64.4575 | I57: 65.7685 | J57: 60.5245 | K57: 56.81 | L57: 54.418 | M57: 55.0459 | N57: 59.8598 | O57: 61.7435 | P57: =SUM(D57:O57) -> 759.1817
A58: EBIT | B58: Plan | C58: Scotland | D58: =D14-D36 -> 50.9105 | E58: 50.0365 | F58: 48.7255 | G58: 47.196 | H58: 49.1625 | I58: 46.759 | J58: 41.952 | K58: 39.5485 | L58: 35.1624 | M58: 38.3019 | N58: 36.8368 | O58: 39.767 | P58: =SUM(D58:O58) -> 524.3586
A59: EBIT | B59: Plan | C59: Wales | D59: =D15-D37 -> 40.4225 | E59: 39.5485 | F59: 38.456 | G59: 40.4225 | H59: 42.826 | I59: 39.33 | J59: 35.834 | K59: 34.7415 | L59: 34.9531 | M59: 38.5112 | N59: 37.674 | O59: 39.5577 | P59: 462.277
A60: EBIT | B60: Plan | C60: Ireland | D60: =D16-D38 -> 70.5755 | E60: 73.416 | F60: 73.853 | G60: 69.483 | H60: 71.4495 | I60: 75.164 | J60: 79.534 | K60: 85.215 | L60: 74.3015 | M60: 74.3015 | N60: 80.1619 | O60: 87.2781 | P60: 914.733
A61: EBIT | B61: Plan | C61: Germany | D61: =D17-D39 -> 83.237 | E61: 86.526 | F61: 84.502 | G61: 78.683 | H61: 83.996 | I61: 78.177 | J61: 79.695 | K61: 66.5574 | L61: 64.6737 | M61: 62.79 | N61: 60.9063 | O61: 60.2784 | P61: 890.0218
A62: EBIT | B62: Plan | C62: France | D62: =D18-D40 -> 79.971 | E62: 81.719 | F62: 84.9965 | G62: 77.349 | H62: 78.223 | I62: 83.6855 | J62: 81.9375 | K62: 78.66 | L62: 72.4178 | M62: 69.4876 | N62: 70.1155 | O62: 73.6736 | P62: 932.236
A63: EBIT | B63: Plan | C63: Italy | D63: =D19-D41 -> 19.09 | E63: 17.25 | F63: 15.64 | G63: 14.03 | H63: 12.65 | I63: 11.27 | J63: 10.12 | K63: 9.2 | L63: 8.28 | M63: 7.36 | N63: 6.67 | O63: 5.98 | P63: 137.54
A64: EBIT | B64: Plan | C64: Spain | D64: =D20-D42 -> 131.56 | E64: 132.319 | F64: 135.861 | G64: 126.247 | H64: 127.512 | I64: 134.16015 | J64: 130.05074 | K64: 135.3688 | L64: 142.13724 | M64: 127.87517 | N64: 134.16015 | O64: 134.16015 | P64: 1591.4114
A65: EBIT | B65: Plan | C65: Greece | D65: =D21-D43 -> 104.2245 | E65: 106.628 | F65: 107.939 | G65: 114.494 | H65: 125.856 | I65: 114.494 | J65: 109.9055 | K65: 108.813 | L65: 104.2314 | M65: 97.9524 | N65: 101.9291 | O65: 100.8826 | P65: 1297.3495
A66: EBIT | B66: Plan | C66: Portugal | D66: =D22-D44 -> 68.25434 | E66: 70.95132 | F66: 69.29164 | G66: 64.52006 | H66: 68.87672 | I66: 64.10514 | J66: 65.3499 | K66: 54.577068 | L66: 53.032434 | M66: 51.4878 | N66: 49.943166 | O66: 49.428288 | P66: 729.817876
A68: =OFFSET(List!$C$1,Report!$D$7,,1,1) -> Expenses | B68: Actual | C68: =C57 -> England | D68: =SUMPRODUCT(($A$2:$A$66=$A68)*($B$2:$B$66=$B68)*($C$2:$C$66=$C68)*(D$2:D$66)) -> 633.42 | E68: =SUMPRODUCT(($A$2:$A$66=$A68)*($B$2:$B$66=$B68)*($C$2:$C$66=$C68)*(E$2:E$66)) -> 685.17 | F68: 676.89 | G68: 662.4 | H68: 610.65 | I68: 623.07 | J68: 573.39 | K68: 538.2 | L68: 538.2 | M68: 544.41 | N68: 592.02 | O68: 610.65 | P68: =SUM(D68:O68) -> 7288.47
A69: =OFFSET(List!$C$1,Report!$D$7,,1,1) -> Expenses | B69: Actual | C69: =C58 -> Scotland | D69: =SUMPRODUCT(($A$2:$A$66=$A69)*($B$2:$B$66=$B69)*($C$2:$C$66=$C69)*(D$2:D$66)) -> 482.31 | E69: 474.03 | F69: 461.61 | G69: 447.12 | H69: 465.75 | I69: 442.98 | J69: 397.44 | K69: 374.67 | L69: 347.76 | M69: 378.81 | N69: 364.32 | O69: 393.3 | P69: =SUM(D69:O69) -> 5030.1
A70: =OFFSET(List!$C$1,Report!$D$7,,1,1) -> Expenses | B70: Actual | C70: Wales | D70: 382.95 | E70: 374.67 | F70: 364.32 | G70: 382.95 | H70: 405.72 | I70: 372.6 | J70: 339.48 | K70: 329.13 | L70: 345.69 | M70: 380.88 | N70: 372.6 | O70: 391.23 | P70: 4442.22
A71: =OFFSET(List!$C$1,Report!$D$7,,1,1) -> Expenses | B71: Actual | C71: Ireland | D71: 668.61 | E71: 695.52 | F71: 699.66 | G71: 658.26 | H71: 676.89 | I71: 712.08 | J71: 753.48 | K71: 807.3 | L71: 734.85 | M71: 734.85 | N71: 792.81 | O71: 863.19 | P71: 8797.5
A72: =OFFSET(List!$C$1,Report!$D$7,,1,1) -> Expenses | B72: Actual | C72: Germany | D72: 681.03 | E72: 707.94 | F72: 691.38 | G72: 643.77 | H72: 687.24 | I72: 639.63 | J72: 652.05 | K72: 658.26 | L72: 639.63 | M72: 621 | N72: 602.37 | O72: 596.16 | P72: 7820.46
A73: =OFFSET(List!$C$1,Report!$D$7,,1,1) -> Expenses | B73: Actual | C73: France | D73: 757.62 | E73: 774.18 | F73: 805.23 | G73: 732.78 | H73: 741.06 | I73: 792.81 | J73: 776.25 | K73: 745.2 | L73: 716.22 | M73: 687.24 | N73: 693.45 | O73: 728.64 | P73: 8950.68
A74: =OFFSET(List!$C$1,Report!$D$7,,1,1) -> Expenses | B74: Actual | C74: Italy | D74: 178.02 | E74: 173.88 | F74: 167.67 | G74: 159.39 | H74: 155.25 | I74: 140.76 | J74: 151.11 | K74: 153.18 | L74: 169.74 | M74: 165.6 | N74: 173.88 | O74: 165.6 | P74: 1954.08
A75: =OFFSET(List!$C$1,Report!$D$7,,1,1) -> Expenses | B75: Actual | C75: Spain | D75: 1076.4 | E75: 1082.61 | F75: 1111.59 | G75: 1032.93 | H75: 1043.28 | I75: 1148.85 | J75: 1113.66 | K75: 1159.2 | L75: 1217.16 | M75: 1095.03 | N75: 1148.85 | O75: 1148.85 | P75: 13378.41
A76: =OFFSET(List!$C$1,Report!$D$7,,1,1) -> Expenses | B76: Actual | C76: Greece | D76: 987.39 | E76: 1010.16 | F76: 1022.58 | G76: 1084.68 | H76: 1192.32 | I76: 1084.68 | J76: 1041.21 | K76: 1030.86 | L76: 1030.86 | M76: 968.76 | N76: 1008.09 | O76: 997.74 | P76: 12459.33
A77: =OFFSET(List!$C$1,Report!$D$7,,1,1) -> Expenses | B77: Actual | C77: Portugal | D77: 558.4446 | E77: 580.5108 | F77: 566.9316 | G77: 527.8914 | H77: 563.5368 | I77: 524.4966 | J77: 534.681 | K77: 539.7732 | L77: 524.4966 | M77: 509.22 | N77: 493.9434 | O77: 488.8512 | P77: 6412.7772
A79: =OFFSET(List!$C$1,Report!$D$7,,1,1) -> Expenses | B79: Plan | C79: =C68 -> England | D79: =SUMPRODUCT(($A$2:$A$66=$A79)*($B$2:$B$66=$B79)*($C$2:$C$66=$C79)*(D$2:D$66)) -> 601.749 | E79: =SUMPRODUCT(($A$2:$A$66=$A79)*($B$2:$B$66=$B79)*($C$2:$C$66=$C79)*(E$2:E$66)) -> 650.9115 | F79: 643.0455 | G79: 629.28 | H79: 580.1175 | I79: 591.9165 | J79: 544.7205 | K79: 511.29 | L79: 489.762 | M79: 495.4131 | N79: 538.7382 | O79: 555.6915 | P79: =SUM(D79:O79) -> 6832.6353
A80: =OFFSET(List!$C$1,Report!$D$7,,1,1) -> Expenses | B80: Plan | C80: =C69 -> Scotland | D80: =SUMPRODUCT(($A$2:$A$66=$A80)*($B$2:$B$66=$B80)*($C$2:$C$66=$C80)*(D$2:D$66)) -> 458.1945 | E80: 450.3285 | F80: 438.5295 | G80: 424.764 | H80: 442.4625 | I80: 420.831 | J80: 377.568 | K80: 355.9365 | L80: 316.4616 | M80: 344.7171 | N80: 331.5312 | O80: 357.903 | P80: =SUM(D80:O80) -> 4719.2274
A81: =OFFSET(List!$C$1,Report!$D$7,,1,1) -> Expenses | B81: Plan | C81: Wales | D81: 363.8025 | E81: 355.9365 | F81: 346.104 | G81: 363.8025 | H81: 385.434 | I81: 353.97 | J81: 322.506 | K81: 312.6735 | L81: 314.5779 | M81: 346.6008 | N81: 339.066 | O81: 356.0193 | P81: 4160.493
A82: =OFFSET(List!$C$1,Report!$D$7,,1,1) -> Expenses | B82: Plan | C82: Ireland | D82: 635.1795 | E82: 660.744 | F82: 664.677 | G82: 625.347 | H82: 643.0455 | I82: 676.476 | J82: 715.806 | K82: 766.935 | L82: 668.7135 | M82: 668.7135 | N82: 721.4571 | O82: 785.5029 | P82: 8232.597
A83: =OFFSET(List!$C$1,Report!$D$7,,1,1) -> Expenses | B83: Plan | C83: Germany | D83: 749.133 | E83: 778.734 | F83: 760.518 | G83: 708.147 | H83: 755.964 | I83: 703.593 | J83: 717.255 | K83: 599.0166 | L83: 582.0633 | M83: 565.11 | N83: 548.1567 | O83: 542.5056 | P83: 8010.1962
A84: =OFFSET(List!$C$1,Report!$D$7,,1,1) -> Expenses | B84: Plan | C84: France | D84: 719.739 | E84: 735.471 | F84: 764.9685 | G84: 696.141 | H84: 704.007 | I84: 753.1695 | J84: 737.4375 | K84: 707.94 | L84: 651.7602 | M84: 625.3884 | N84: 631.0395 | O84: 663.0624 | P84: 8390.124
A85: =OFFSET(List!$C$1,Report!$D$7,,1,1) -> Expenses | B85: Plan | C85: Italy | D85: 171.81 | E85: 155.25 | F85: 140.76 | G85: 126.27 | H85: 113.85 | I85: 101.43 | J85: 91.08 | K85: 82.8 | L85: 74.52 | M85: 66.24 | N85: 60.03 | O85: 53.82 | P85: 1237.86
A86: =OFFSET(List!$C$1,Report!$D$7,,1,1) -> Expenses | B86: Plan | C86: Spain | D86: 1184.04 | E86: 1190.871 | F86: 1222.749 | G86: 1136.223 | H86: 1147.608 | I86: 1207.44135 | J86: 1170.45666 | K86: 1218.3192 | L86: 1279.23516 | M86: 1150.87653 | N86: 1207.44135 | O86: 1207.44135 | P86: 14322.7026
A87: =OFFSET(List!$C$1,Report!$D$7,,1,1) -> Expenses | B87: Plan | C87: Greece | D87: 938.0205 | E87: 959.652 | F87: 971.451 | G87: 1030.446 | H87: 1132.704 | I87: 1030.446 | J87: 989.1495 | K87: 979.317 | L87: 938.0826 | M87: 881.5716 | N87: 917.3619 | O87: 907.9434 | P87: 11676.1455
A88: =OFFSET(List!$C$1,Report!$D$7,,1,1) -> Expenses | B88: Plan | C88: Portugal | D88: 614.28906 | E88: 638.56188 | F88: 623.62476 | G88: 580.68054 | H88: 619.89048 | I88: 576.94626 | J88: 588.1491 | K88: 491.193612 | L88: 477.291906 | M88: 463.3902 | N88: 449.488494 | O88: 444.854592 | P88: 6568.360884

Sheet Chart
A1: Desc | B1: Region | C1: Country | D1: Actual | E1: Plan
A2: Actual | B2: Europe | C2: England | D2: 62 | E2: 72
A3: Actual | B3: Europe | C3: Scotland | D3: 48 | E3: 52.8
A4: Actual | B4: Europe | C4: Wales | D4: 52 | E4: 60
A5: Actual | B5: Europe | C5: Ireland | D5: 66 | E5: 74.4
A6: Actual | B6: Europe | C6: Germany | D6: 68 | E6: 60
A7: Actual | B7: Europe | C7: France | D7: 74 | E7: 79
A8: Actual | B8: Europe | C8: Italy | D8: 48 | E8: 49
A9: Actual | B9: Europe | C9: Spain | D9: 70 | E9: 77
A10: Actual | B10: Europe | C10: Greece | D10: 50 | E10: 39
A11: Actual | B11: Europe | C11: Portugal | D11: 54 | E11: 72
A13: Actual | B13: Americas | C13: USA | D13: 62 | E13: 72
A14: Actual | B14: Americas | C14: Canada | D14: 52 | E14: 60
A15: Actual | B15: Americas | C15: Mexico | D15: 42 | E15: 50.4
A16: Actual | B16: Americas | C16: Columbia | D16: 66 | E16: 76.8
A17: Actual | B17: Americas | C17: Brazil | D17: 70 | E17: 66
A18: Actual | B18: Americas | C18: Chile | D18: 76 | E18: 66
A19: Actual | B19: Americas | C19: Venezuala | D19: 70 | E19: 73
A20: Actual | B20: Americas | C20: Cuba | D20: 45 | E20: 50
A21: Actual | B21: Americas | C21: Uraguay | D21: 39 | E21: 57
A22: Actual | B22: Americas | C22: Argentina | D22: 56 | E22: 67.2
D23: 0 | E23: 0
A24: Actual | B24: Asia Pac | C24: Australia | D24: 64 | E24: 57.6
A25: Actual | B25: Asia Pac | C25: New Zealand | D25: 58 | E25: 62.4
A26: Actual | B26: Asia Pac | C26: China | D26: 48 | E26: 50.4
A27: Actual | B27: Asia Pac | C27: Hong Kong | D27: 68 | E27: 72
A28: Actual | B28: Asia Pac | C28: India | D28: 47 | E28: 60
A29: Actual | B29: Asia Pac | C29: Pakistan | D29: 76 | E29: 57.6
A30: Actual | B30: Asia Pac | C30: Bangladesh | D30: 44 | E30: 45.6
A31: Actual | B31: Asia Pac | C31: Vietnam | D31: 50 | E31: 60
A32: Actual | B32: Asia Pac | C32: Cambodia | D32: 50 | E32: 39
A33: Actual | B33: Asia Pac | C33: Laos | D33: 34 | E33: 36
D34: 0
A37: Actual | B37: Americas | C37: =OFFSET(C1,MATCH(B37,$B$2:$B$34,0),0,1) -> USA | D37: =SUMPRODUCT(($A$2:$A$34=$A37)*($C$2:$C$34=$C37)*(D$2:D$34)) -> 62 | E37: 72
A38: Actual | B38: Americas | C38: Canada | D38: 52 | E38: 60
A39: Actual | B39: Americas | C39: Mexico | D39: 42 | E39: 50.4
A40: Actual | B40: Americas | C40: Columbia | D40: 66 | E40: 76.8
A41: Actual | B41: Americas | C41: Brazil | D41: 70 | E41: 66
A42: Actual | B42: Americas | C42: Chile | D42: 76 | E42: 66
A43: Actual | B43: Americas | C43: Venezuala | D43: 70 | E43: 73
A44: Actual | B44: Americas | C44: Cuba | D44: 45 | E44: 50
A45: Actual | B45: Americas | C45: Uraguay | D45: 39 | E45: 57
A46: Actual | B46: Americas | C46: Argentina | D46: 56 | E46: 67.2

Sheet Report
D7: 2
B9: Country | C9: =Data!A68 -> Expenses | D9: Plan | E9: Var
B10: =Data!C68 -> England | C10: =Data!P68 -> 7288.47 | D10: =Data!P79 -> 6832.6353 | E10: =C10-D10 -> 455.8347
B11: =Data!C69 -> Scotland | C11: =Data!P69 -> 5030.1 | D11: =Data!P80 -> 4719.2274 | E11: =C11-D11 -> 310.8726
B12: =Data!C70 -> Wales | C12: =Data!P70 -> 4442.22 | D12: =Data!P81 -> 4160.493 | E12: 281.727
B13: =Data!C71 -> Ireland | C13: =Data!P71 -> 8797.5 | D13: =Data!P82 -> 8232.597 | E13: 564.903
B14: =Data!C72 -> Germany | C14: =Data!P72 -> 7820.46 | D14: =Data!P83 -> 8010.1962 | E14: -189.7362
B15: =Data!C73 -> France | C15: =Data!P73 -> 8950.68 | D15: =Data!P84 -> 8390.124 | E15: 560.556
B16: =Data!C74 -> Italy | C16: =Data!P74 -> 1954.08 | D16: =Data!P85 -> 1237.86 | E16: 716.22
B17: =Data!C75 -> Spain | C17: =Data!P75 -> 13378.41 | D17: =Data!P86 -> 14322.7026 | E17: -944.2926
B18: =Data!C76 -> Greece | C18: =Data!P76 -> 12459.33 | D18: =Data!P87 -> 11676.1455 | E18: 783.1845
B19: =Data!C77 -> Portugal | C19: =Data!P77 -> 6412.7772 | D19: =Data!P88 -> 6568.360884 | E19: -155.583684
